Workbook

Sheet QuickBooks Desktop Export Tips

Sheet Sheet1
B1: Type | D1: Date | F1: Num | H1: Name | J1: Split | L1: Amount | M1: Gallons
A3: 610 · Purchased Water
B4: Bill | D4: 2024-01-10 | F4: CON121 | H4: MAYFIELD ELECTRIC & WATER SYSTEMS | J4: 20000 · Accounts Payable | L4: 11259.9 | M4: 5463500
B5: Bill | D5: 2024-01-10 | F5: CONBKSBG | H5: MAYFIELD ELECTRIC & WATER SYSTEMS | J5: 20000 · Accounts Payable | L5: 5049.08 | M5: 2368541
B6: Bill | D6: 2024-01-10 | F6: HARDEMAN | H6: MAYFIELD ELECTRIC & WATER SYSTEMS | J6: 20000 · Accounts Payable | L6: 3476.64 | M6: 1548701
J7: JANUARY | L7: =SUM(L4:L6) -> 19785.62 | M7: =SUM(M4:M6) -> 9380742
B9: Bill | D9: 2024-02-15 | F9: HRD | H9: MAYFIELD ELECTRIC & WATER SYSTEMS | J9: 20000 · Accounts Payable | L9: 3959.15 | M9: 1799790
B10: Bill | D10: 2024-02-15 | H10: MAYFIELD ELECTRIC & WATER SYSTEMS | J10: 20000 · Accounts Payable | L10: 8863.34 | M10: 4353684
B11: Bill | D11: 2024-02-15 | H11: MAYFIELD ELECTRIC & WATER SYSTEMS | J11: 20000 · Accounts Payable | L11: 12841.99 | M11: 6226170
J12: FEBRUARY | L12: =SUM(L9:L11) -> 25664.48 | M12: =SUM(M9:M11) -> 12379644
B14: Bill | D14: 2024-03-14 | F14: CON121 | H14: MAYFIELD ELECTRIC & WATER SYSTEMS | J14: 20000 · Accounts Payable | L14: 15724.04 | M14: 7648850
B15: Bill | D15: 2024-03-14 | F15: CONBKSG | H15: MAYFIELD ELECTRIC & WATER SYSTEMS | J15: 20000 · Accounts Payable | L15: 9680.64 | M15: 4779054
B16: Bill | D16: 2024-03-14 | F16: HRD | H16: MAYFIELD ELECTRIC & WATER SYSTEMS | J16: 20000 · Accounts Payable | L16: 4281.57 | M16: 1964960
J17: MARCH | L17: =SUM(L14:L16) -> 29686.25 | M17: =SUM(M14:M16) -> 14392864
B19: Bill | D19: 2024-04-10 | F19: con121 | H19: MAYFIELD ELECTRIC & WATER SYSTEMS | J19: 20000 · Accounts Payable | L19: 12983.18 | M19: 6301380
B20: Bill | D20: 2024-04-10 | F20: HRD | H20: MAYFIELD ELECTRIC & WATER SYSTEMS | J20: 20000 · Accounts Payable | L20: 3932.17 | M20: 1785766
B21: Bill | D21: 2024-04-10 | F21: CONBKSG | H21: MAYFIELD ELECTRIC & WATER SYSTEMS | J21: 20000 · Accounts Payable | L21: 9000.69 | M21: 4425167
J22: APRIL | L22: =SUM(L19:L21) -> 25916.04 | M22: =SUM(M19:M21) -> 12512313
B24: Bill | D24: 2024-05-09 | F24: CONSBKSG | H24: MAYFIELD ELECTRIC & WATER SYSTEMS | J24: 20000 · Accounts Payable | L24: 8301.29 | M24: 4031163
B25: Bill | D25: 2024-05-09 | H25: MAYFIELD ELECTRIC & WATER SYSTEMS | J25: 20000 · Accounts Payable | L25: 3636.03 | M25: 1631614
B26: Bill | D26: 2024-05-09 | F26: CON121 | H26: MAYFIELD ELECTRIC & WATER SYSTEMS | J26: 20000 · Accounts Payable | L26: 10789.45 | M26: 5226260
J27: MAY | L27: =SUM(L24:L26) -> 22726.77 | M27: =SUM(M24:M26) -> 10889037
B29: Bill | D29: 2024-06-11 | F29: HARDEMAN | H29: MAYFIELD ELECTRIC & WATER SYSTEMS | J29: 20000 · Accounts Payable | L29: 3511.77 | M29: 1567101
B30: Bill | D30: 2024-06-11 | F30: CONBKG | H30: MAYFIELD ELECTRIC & WATER SYSTEMS | J30: 20000 · Accounts Payable | L30: 7475.23 | M30: 3631238
B31: Bill | D31: 2024-06-12 | H31: MAYFIELD ELECTRIC & WATER SYSTEMS | J31: 20000 · Accounts Payable | L31: 10377.84 | M31: 5021810
J32: JUNE | L32: =SUM(L29:L31) -> 21364.84 | M32: =SUM(M29:M31) -> 10220149
B34: Bill | D34: 2024-07-09 | F34: CON121 | H34: MAYFIELD ELECTRIC & WATER SYSTEMS | J34: 20000 · Accounts Payable | L34: 11435.48 | M34: 5543690
B35: Bill | D35: 2024-07-09 | F35: HRD | H35: MAYFIELD ELECTRIC & WATER SYSTEMS | J35: 20000 · Accounts Payable | L35: 4008.21 | M35: 1825262
B36: Bill | D36: 2024-07-09 | F36: CONBKS | H36: MAYFIELD ELECTRIC & WATER SYSTEMS | J36: 20000 · Accounts Payable | L36: 7870.6 | M36: 3837008
J37: JULY | L37: =SUM(L34:L36) -> 23314.29 | M37: =SUM(M34:M36) -> 11205960
B39: Bill | D39: 2024-08-06 | F39: CON2ND | H39: MAYFIELD ELECTRIC & WATER SYSTEMS | J39: 20000 · Accounts Payable | L39: 8436.72 | M39: 4131651
B40: Bill | D40: 2024-08-06 | F40: HRD | H40: MAYFIELD ELECTRIC & WATER SYSTEMS | J40: 20000 · Accounts Payable | L40: 4614.02 | M40: 2140667
B41: Bill | D41: 2024-08-06 | F41: FF INTERCONNECT | H41: MAYFIELD ELECTRIC & WATER SYSTEMS | J41: 20000 · Accounts Payable | L41: 6097.78 | M41: 1873858
B42: Bill | D42: 2024-08-06 | F42: CONSUMERS | H42: MAYFIELD ELECTRIC & WATER SYSTEMS | J42: 20000 · Accounts Payable | L42: 11837.3 | M42: 5742020
J43: AUGUST | L43: =SUM(L39:L42) -> 30985.82 | M43: =SUM(M39:M42) -> 13888196
B45: Bill | D45: 2024-09-12 | H45: MAYFIELD ELECTRIC & WATER SYSTEMS | J45: 20000 · Accounts Payable | L45: 8979.15 | M45: 2839195
B46: Bill | D46: 2024-09-12 | H46: MAYFIELD ELECTRIC & WATER SYSTEMS | J46: 20000 · Accounts Payable | L46: 12057.98 | M46: 5851990
B47: Bill | D47: 2024-09-12 | H47: MAYFIELD ELECTRIC & WATER SYSTEMS | J47: 20000 · Accounts Payable | L47: 4806.82 | M47: 2240943
B48: Bill | D48: 2024-09-12 | H48: MAYFIELD ELECTRIC & WATER SYSTEMS | J48: 20000 · Accounts Payable | L48: 8517.29 | M48: 4173583
J49: SEPTEMBER | L49: =SUM(L45:L48) -> 34361.24 | M49: =SUM(M45:M48) -> 15105711
B51: Bill | D51: 2024-10-14 | F51: HRD | H51: MAYFIELD ELECTRIC & WATER SYSTEMS | J51: 20000 · Accounts Payable | L51: 5701.21 | M51: 2706277
B52: Bill | D52: 2024-10-14 | F52: CONSBKSG | H52: MAYFIELD ELECTRIC & WATER SYSTEMS | J52: 20000 · Accounts Payable | L52: 9282.31 | M52: 4571741
B53: Bill | D53: 2024-10-14 | F53: CONS121 | H53: MAYFIELD ELECTRIC & WATER SYSTEMS | J53: 20000 · Accounts Payable | L53: 13334.87 | M53: 6480870
B54: Bill | D54: 2024-10-14 | F54: FF | H54: MAYFIELD ELECTRIC & WATER SYSTEMS | J54: 20000 · Accounts Payable | L54: 117.33 | M54: 19359
J55: OCTOBER | L55: =SUM(L51:L54) -> 28435.72 | M55: =SUM(M51:M54) -> 13778247
B57: Bill | D57: 2024-11-13 | F57: FF | H57: MAYFIELD ELECTRIC & WATER SYSTEMS | J57: 20000 · Accounts Payable | L57: 15.56
B58: Bill | D58: 2024-11-13 | F58: HRD | H58: MAYFIELD ELECTRIC & WATER SYSTEMS | J58: 20000 · Accounts Payable | L58: 5114.03 | M58: 2400950
B59: Bill | D59: 2024-11-13 | F59: CONBKS | H59: MAYFIELD ELECTRIC & WATER SYSTEMS | J59: 20000 · Accounts Payable | L59: 8363.89 | M59: 4093745
B60: Bill | D60: 2024-11-13 | F60: CON121 | H60: MAYFIELD ELECTRIC & WATER SYSTEMS | J60: 20000 · Accounts Payable | L60: 11146.08 | M60: 5397880
J61: NOVEMBER | L61: =SUM(L57:L60) -> 24639.56 | M61: =SUM(M57:M60) -> 11892575
B63: Bill | D63: 2024-12-11 | F63: CONBKG | H63: MAYFIELD ELECTRIC & WATER SYSTEMS | J63: 20000 · Accounts Payable | L63: 8906.31 | M63: 4198530
B64: Bill | D64: 2024-12-11 | F64: HRD | H64: MAYFIELD ELECTRIC & WATER SYSTEMS | J64: 20000 · Accounts Payable | L64: 4266.43 | M64: 1875099
B65: Bill | D65: 2024-12-11 | F65: CON | H65: MAYFIELD ELECTRIC & WATER SYSTEMS | J65: 20000 · Accounts Payable | L65: 12222.82 | M65: 5700630
J66: DECEMBER | L66: =SUM(L63:L65) -> 25395.56 | M66: =SUM(M63:M65) -> 11774259
A68: Total 610 · Purchased Water | L68: =+L7+L12+L17+L22+L27+L32+L37+L43+L49+L55+L61+L66 -> 312276.19 | M68: =+M7+M12+M17+M22+M27+M32+M37+M43+M49+M55+M61+M66 -> 147419697
